[Event "Titled Tuesday Blitz November 14 Late 2023"]
[White "Yeritsyan, Hayk"]
[Black "ilya2700"]
[WhiteFideId "13307320"]
[WhiteElo "2417"]
[BlackElo "2265"]
[Result "1-0"]
[Round "3"]
[TimeControl "180+1"]
[Date "2023.11.14"]
[WhiteClock "0:01:35"]
[BlackClock "0:00:07"]
[Board "154"]

1. d4 {[%clk 0:02:56]}  Nf6 {[%clk 0:02:58]} 2. Nf3 {[%clk 0:02:57]}  g6 {[%clk 0:02:58]} 3. Bf4 {[%clk 0:02:56]}  Bg7 {[%clk 0:02:59]} 4. h3 {[%clk 0:02:57]}  O-O {[%clk 0:02:59]} 5. e3 {[%clk 0:02:58]}  d5 {[%clk 0:02:59]} 6. c3 {[%clk 0:02:59]}  b6 {[%clk 0:03:00]} 7. Be2 {[%clk 0:03:00]}  Bb7 {[%clk 0:03:01]} 8. O-O {[%clk 0:03:01]}  Nbd7 {[%clk 0:03:01]} 9. Bh2 {[%clk 0:03:01]}  Ne4 {[%clk 0:03:01]} 10. Nbd2 {[%clk 0:03:02]}  Ndf6 {[%clk 0:03:02]} 11. Nxe4 {[%clk 0:03:02]}  Nxe4 {[%clk 0:03:02]} 12. Nd2 {[%clk 0:03:02]}  Nxd2 {[%clk 0:02:44]} 13. Qxd2 {[%clk 0:03:03]}  Re8 {[%clk 0:02:45]} 14. Rac1 {[%clk 0:03:01]}  e5 {[%clk 0:02:44]} 15. Bf3 {[%clk 0:03:02]}  c5 {[%clk 0:02:38]} 16. Rfd1 {[%clk 0:02:58]}  e4 {[%clk 0:02:12]} 17. Be2 {[%clk 0:02:53]}  cxd4 {[%clk 0:01:37]} 18. cxd4 {[%clk 0:02:52]}  Qd7 {[%clk 0:01:32]} 19. Rc7 {[%clk 0:02:49]}  Qxc7 {[%clk 0:01:13]} 20. Bxc7 {[%clk 0:02:47]}  Rac8 {[%clk 0:01:14]} 21. Rc1 {[%clk 0:02:46]}  Bf8 {[%clk 0:01:12]} 22. Bg3 {[%clk 0:02:44]}  h5 {[%clk 0:01:10]} 23. Rc3 {[%clk 0:02:38]}  f6 {[%clk 0:01:08]} 24. Qc2 {[%clk 0:02:37]}  Bb4 {[%clk 0:01:02]} 25. Rxc8 {[%clk 0:02:36]}  Rxc8 {[%clk 0:01:03]} 26. Qa4 {[%clk 0:02:36]}  Bf8 {[%clk 0:00:55]} 27. Qd7 {[%clk 0:02:29]}  Rc1+ {[%clk 0:00:55]} 28. Kh2 {[%clk 0:02:28]}  Bc8 {[%clk 0:00:55]} 29. Qxd5+ {[%clk 0:02:27]}  Kh7 {[%clk 0:00:55]} 30. Qxe4 {[%clk 0:02:22]}  a5 {[%clk 0:00:49]} 31. Bd3 {[%clk 0:02:16]}  f5 {[%clk 0:00:43]} 32. Qe8 {[%clk 0:02:13]}  Bg7 {[%clk 0:00:41]} 33. Qf7 {[%clk 0:02:11]}  Kh8 {[%clk 0:00:36]} 34. Be5 {[%clk 0:02:08]}  Bxe5+ {[%clk 0:00:36]} 35. dxe5 {[%clk 0:02:09]}  a4 {[%clk 0:00:35]} 36. e6 {[%clk 0:02:07]}  Bxe6 {[%clk 0:00:33]} 37. Qxe6 {[%clk 0:02:07]}  Kg7 {[%clk 0:00:34]} 38. Qxb6 {[%clk 0:02:06]}  h4 {[%clk 0:00:34]} 39. Qd4+ {[%clk 0:02:07]}  Kh7 {[%clk 0:00:30]} 40. Qxh4+ {[%clk 0:02:07]}  Kg7 {[%clk 0:00:29]} 41. Qxa4 {[%clk 0:02:08]}  f4 {[%clk 0:00:28]} 42. Qxf4 {[%clk 0:02:07]}  Kh7 {[%clk 0:00:26]} 43. Qg5 {[%clk 0:02:07]}  Kh8 {[%clk 0:00:26]} 44. Qh6+ {[%clk 0:01:56]}  Kg8 {[%clk 0:00:25]} 45. Qxg6+ {[%clk 0:01:57]}  Kf8 {[%clk 0:00:26]} 46. Qf6+ {[%clk 0:01:57]}  Kg8 {[%clk 0:00:25]} 47. Bf5 {[%clk 0:01:46]}  Rh1+ {[%clk 0:00:21]} 48. Kg3 {[%clk 0:01:46]}  Rg1 {[%clk 0:00:21]} 49. Qg6+ {[%clk 0:01:43]}  Kf8 {[%clk 0:00:21]} 50. Kf4 {[%clk 0:01:43]}  Rc1 {[%clk 0:00:18]} 51. Qf6+ {[%clk 0:01:42]}  Kg8 {[%clk 0:00:17]} 52. Be6+ {[%clk 0:01:42]}  Kh7 {[%clk 0:00:16]} 53. e4 {[%clk 0:01:41]}  Rc7 {[%clk 0:00:14]} 54. Qf7+ {[%clk 0:01:41]}  Kh8 {[%clk 0:00:07]} 55. Qg8# {[%clk 0:01:35]} 1-0


[Site "https://www.chess.com"]

[Event "Titled Tuesday Blitz November 14 Late 2023"]
[White "Chemin, Justo Reinaldo"]
[Black "Hoffmann, Asa"]
[WhiteFideId "2101580"]
[BlackFideId "2001470"]
[WhiteElo "2211"]
[BlackElo "2400"]
[Result "0-1"]
[Round "3"]
[TimeControl "180+1"]
[Date "2023.11.14"]
[WhiteClock "0:00:15"]
[BlackClock "0:00:31"]
[Board "157"]

1. d4 {[%clk 0:03:00]}  Nf6 {[%clk 0:02:52]} 2. c4 {[%clk 0:03:00]}  c5 {[%clk 0:02:51]} 3. Nf3 {[%clk 0:02:59]}  cxd4 {[%clk 0:02:50]} 4. Nxd4 {[%clk 0:02:59]}  e5 {[%clk 0:02:50]} 5. Nb5 {[%clk 0:02:57]}  d5 {[%clk 0:02:49]} 6. cxd5 {[%clk 0:02:56]}  Bb4+ {[%clk 0:02:49]} 7. Bd2 {[%clk 0:02:36]}  Bc5 {[%clk 0:02:48]} 8. N5c3 {[%clk 0:02:22]}  Bf5 {[%clk 0:02:44]} 9. e3 {[%clk 0:02:19]}  Nbd7 {[%clk 0:02:42]} 10. Bb5 {[%clk 0:02:14]}  O-O {[%clk 0:02:37]} 11. O-O {[%clk 0:02:11]}  e4 {[%clk 0:02:35]} 12. a3 {[%clk 0:02:00]}  Rc8 {[%clk 0:02:32]} 13. b4 {[%clk 0:01:59]}  Bd6 {[%clk 0:02:32]} 14. Bxd7 {[%clk 0:01:45]}  Qxd7 {[%clk 0:02:24]} 15. Ne2 {[%clk 0:01:42]}  Qe7 {[%clk 0:02:21]} 16. Ng3 {[%clk 0:01:38]}  Bg4 {[%clk 0:02:20]} 17. Qb3 {[%clk 0:01:33]}  h5 {[%clk 0:02:20]} 18. Bc3 {[%clk 0:01:28]}  h4 {[%clk 0:02:15]} 19. Bxf6 {[%clk 0:01:25]}  Qxf6 {[%clk 0:02:10]} 20. Nxe4 {[%clk 0:01:25]}  Qxa1 {[%clk 0:01:48]} 21. Nxd6 {[%clk 0:01:25]}  Rcd8 {[%clk 0:01:46]} 22. Ne4 {[%clk 0:01:18]}  Qe5 {[%clk 0:01:42]} 23. Nbd2 {[%clk 0:01:18]}  Rxd5 {[%clk 0:01:34]} 24. f4 {[%clk 0:01:16]}  Qe6 {[%clk 0:01:19]} 25. Ng5 {[%clk 0:01:07]}  Qd7 {[%clk 0:01:14]} 26. Nde4 {[%clk 0:01:04]}  Rd3 {[%clk 0:01:06]} 27. Qc4 {[%clk 0:00:52]}  Rxe3 {[%clk 0:01:03]} 28. Nc5 {[%clk 0:00:51]}  Qe7 {[%clk 0:00:55]} 29. Qd4 {[%clk 0:00:45]}  Rd8 {[%clk 0:00:49]} 30. Qc4 {[%clk 0:00:37]}  Be2 {[%clk 0:00:48]} 31. Qc2 {[%clk 0:00:27]}  g6 {[%clk 0:00:39]} 32. Re1 {[%clk 0:00:20]}  Bd3 {[%clk 0:00:33]} 33. Nxd3 {[%clk 0:00:20]}  Rxe1+ {[%clk 0:00:32]} 34. Kf2 {[%clk 0:00:15]}  Qe3# {[%clk 0:00:31]} 0-1


[Site "https://www.chess.com"]

[Event "Titled Tuesday Blitz November 14 Late 2023"]
[White "Kujawski, Adam"]
[Black "Broca Jimenez, Fernando"]
[WhiteFideId "1100920"]
[BlackFideId "5104742"]
[WhiteElo "2399"]
[BlackElo "2208"]
[Result "1-0"]
[Round "3"]
[TimeControl "180+1"]
[Date "2023.11.14"]
[WhiteClock "0:00:09"]
[BlackClock "0:00:00"]
[Board "158"]

1. e4 {[%clk 0:03:00]}  c5 {[%clk 0:02:59]} 2. Nf3 {[%clk 0:03:00]}  g6 {[%clk 0:03:00]} 3. c3 {[%clk 0:02:55]}  Bg7 {[%clk 0:02:57]} 4. d4 {[%clk 0:02:55]}  cxd4 {[%clk 0:02:58]} 5. cxd4 {[%clk 0:02:55]}  d5 {[%clk 0:02:59]} 6. exd5 {[%clk 0:02:50]}  Nf6 {[%clk 0:02:46]} 7. Bb5+ {[%clk 0:02:46]}  Nbd7 {[%clk 0:02:45]} 8. d6 {[%clk 0:02:43]}  exd6 {[%clk 0:02:44]} 9. Qe2+ {[%clk 0:02:43]}  Qe7 {[%clk 0:02:44]} 10. Qxe7+ {[%clk 0:02:42]}  Kxe7 {[%clk 0:02:45]} 11. Nc3 {[%clk 0:02:41]}  a6 {[%clk 0:02:40]} 12. Bc4 {[%clk 0:02:23]}  Nb6 {[%clk 0:02:40]} 13. Bb3 {[%clk 0:02:20]}  Be6 {[%clk 0:02:37]} 14. Bxe6 {[%clk 0:02:08]}  fxe6 {[%clk 0:02:36]} 15. Bg5 {[%clk 0:02:03]}  Rac8 {[%clk 0:02:26]} 16. O-O-O {[%clk 0:01:54]}  h6 {[%clk 0:02:08]} 17. Bxf6+ {[%clk 0:01:53]}  Bxf6 {[%clk 0:02:09]} 18. Rhe1 {[%clk 0:01:52]}  d5 {[%clk 0:01:10]} 19. Re2 {[%clk 0:01:46]}  Rc6 {[%clk 0:01:03]} 20. Rde1 {[%clk 0:01:45]}  Rhc8 {[%clk 0:01:01]} 21. Kb1 {[%clk 0:01:03]}  Kf7 {[%clk 0:00:50]} 22. g4 {[%clk 0:00:53]}  Nc4 {[%clk 0:00:41]} 23. Na4 {[%clk 0:00:41]}  b6 {[%clk 0:00:20]} 24. h4 {[%clk 0:00:39]}  Bg7 {[%clk 0:00:14]} 25. h5 {[%clk 0:00:38]}  g5 {[%clk 0:00:14]} 26. a3 {[%clk 0:00:29]}  Na5 {[%clk 0:00:12]} 27. Nc3 {[%clk 0:00:21]}  Nc4 {[%clk 0:00:11]} 28. Nd1 {[%clk 0:00:17]}  b5 {[%clk 0:00:04]} 29. Ne3 {[%clk 0:00:16]}  Nxe3 {[%clk 0:00:03]} 30. fxe3 {[%clk 0:00:17]}  Ke7 {[%clk 0:00:02]} 31. Nd2 {[%clk 0:00:11]}  Rf8 {[%clk 0:00:02]} 32. Rf1 {[%clk 0:00:08]}  Rxf1+ {[%clk 0:00:01]} 33. Nxf1 {[%clk 0:00:09]}  e5 {[%clk 0:00:01]} 34. Ng3 {[%clk 0:00:09]}  exd4 {[%clk 0:00:00]} 35. Nf5+ {[%clk 0:00:09]} 1-0


[Site "https://www.chess.com"]

[Event "Titled Tuesday Blitz November 14 Late 2023"]
[White "Jamal-Jamal-Jamal"]
[Black "Curtis, John"]
[BlackFideId "3200256"]
[WhiteElo "2392"]
[BlackElo "2173"]
[Result "1-0"]
[Round "3"]
[TimeControl "180+1"]
[Date "2023.11.14"]
[WhiteClock "0:00:15"]
[BlackClock "0:00:00"]
[Board "162"]

1. e4 {[%clk 0:03:00]}  e6 {[%clk 0:02:58]} 2. d4 {[%clk 0:03:00]}  d5 {[%clk 0:02:59]} 3. Bd3 {[%clk 0:02:53]}  dxe4 {[%clk 0:02:53]} 4. Bxe4 {[%clk 0:02:53]}  Nf6 {[%clk 0:02:53]} 5. Bf3 {[%clk 0:02:53]}  c5 {[%clk 0:02:52]} 6. Ne2 {[%clk 0:02:53]}  Nc6 {[%clk 0:02:50]} 7. Be3 {[%clk 0:02:50]}  Nd5 {[%clk 0:02:49]} 8. Bxd5 {[%clk 0:02:47]}  Qxd5 {[%clk 0:02:43]} 9. Nbc3 {[%clk 0:02:39]}  Qxg2 {[%clk 0:02:29]} 10. Rg1 {[%clk 0:02:37]}  Qxh2 {[%clk 0:02:27]} 11. Nb5 {[%clk 0:02:22]}  a6 {[%clk 0:02:15]} 12. Bf4 {[%clk 0:02:19]}  Qxg1+ {[%clk 0:02:15]} 13. Nxg1 {[%clk 0:02:17]}  axb5 {[%clk 0:02:16]} 14. Nf3 {[%clk 0:02:12]}  f6 {[%clk 0:02:03]} 15. d5 {[%clk 0:02:05]}  exd5 {[%clk 0:01:56]} 16. Qxd5 {[%clk 0:02:05]}  Bg4 {[%clk 0:01:56]} 17. Qe4+ {[%clk 0:01:56]}  Kf7 {[%clk 0:01:53]} 18. O-O-O {[%clk 0:01:52]}  Re8 {[%clk 0:01:46]} 19. Qd5+ {[%clk 0:01:39]}  Be6 {[%clk 0:01:43]} 20. Qh5+ {[%clk 0:01:34]}  g6 {[%clk 0:01:43]} 21. Qh2 {[%clk 0:01:33]}  h5 {[%clk 0:01:29]} 22. Kb1 {[%clk 0:01:20]}  Bg4 {[%clk 0:01:20]} 23. Qg3 {[%clk 0:01:16]}  Be7 {[%clk 0:01:09]} 24. a3 {[%clk 0:01:17]}  Rd8 {[%clk 0:01:09]} 25. Re1 {[%clk 0:01:16]}  Rhe8 {[%clk 0:00:59]} 26. Rg1 {[%clk 0:01:02]}  Nd4 {[%clk 0:00:56]} 27. Nxd4 {[%clk 0:01:00]}  Rxd4 {[%clk 0:00:50]} 28. Be3 {[%clk 0:00:59]}  Rd7 {[%clk 0:00:46]} 29. Qf4 {[%clk 0:00:53]}  Bf5 {[%clk 0:00:36]} 30. Qh6 {[%clk 0:00:49]}  Bf8 {[%clk 0:00:36]} 31. Qh7+ {[%clk 0:00:42]}  Ke6 {[%clk 0:00:36]} 32. Qg8+ {[%clk 0:00:41]}  Kd6 {[%clk 0:00:17]} 33. Rd1+ {[%clk 0:00:35]}  Kc6 {[%clk 0:00:17]} 34. Rxd7 {[%clk 0:00:32]}  Kxd7 {[%clk 0:00:17]} 35. Qf7+ {[%clk 0:00:28]}  Be7 {[%clk 0:00:04]} 36. Qg7 {[%clk 0:00:17]}  Ke6 {[%clk 0:00:00]} 37. Qh6 {[%clk 0:00:15]} 1-0


[Site "https://www.chess.com"]

[Event "Titled Tuesday Blitz November 14 Late 2023"]
[White "ThePeasant98"]
[Black "Zakarian, David"]
[BlackFideId "13301276"]
[WhiteElo "2159"]
[BlackElo "2388"]
[Result "0-1"]
[Round "3"]
[TimeControl "180+1"]
[Date "2023.11.14"]
[WhiteClock "0:00:12"]
[BlackClock "0:01:25"]
[Board "164"]

1. d4 {[%clk 0:03:00]}  Nf6 {[%clk 0:02:58]} 2. c4 {[%clk 0:03:01]}  c5 {[%clk 0:02:58]} 3. d5 {[%clk 0:03:00]}  Ne4 {[%clk 0:02:56]} 4. Qd3 {[%clk 0:02:40]}  Qa5+ {[%clk 0:02:52]} 5. Nd2 {[%clk 0:02:37]}  Nd6 {[%clk 0:02:51]} 6. Nf3 {[%clk 0:02:34]}  g6 {[%clk 0:02:51]} 7. g3 {[%clk 0:02:34]}  Bg7 {[%clk 0:02:51]} 8. Bg2 {[%clk 0:02:34]}  O-O {[%clk 0:02:49]} 9. O-O {[%clk 0:02:34]}  b5 {[%clk 0:02:49]} 10. cxb5 {[%clk 0:02:29]}  Qxb5 {[%clk 0:02:47]} 11. Qxb5 {[%clk 0:02:17]}  Nxb5 {[%clk 0:02:48]} 12. Nc4 {[%clk 0:02:15]}  Ba6 {[%clk 0:02:38]} 13. Bg5 {[%clk 0:01:54]}  Re8 {[%clk 0:02:31]} 14. Nfd2 {[%clk 0:01:51]}  d6 {[%clk 0:02:28]} 15. Rac1 {[%clk 0:01:48]}  Nd4 {[%clk 0:02:24]} 16. Rfe1 {[%clk 0:01:47]}  h6 {[%clk 0:02:20]} 17. Bf4 {[%clk 0:01:44]}  g5 {[%clk 0:02:20]} 18. Be3 {[%clk 0:01:45]}  Nf5 {[%clk 0:02:20]} 19. g4 {[%clk 0:01:29]}  Nxe3 {[%clk 0:02:03]} 20. fxe3 {[%clk 0:01:30]}  Nd7 {[%clk 0:02:03]} 21. b3 {[%clk 0:01:29]}  Nf6 {[%clk 0:01:47]} 22. Rf1 {[%clk 0:01:26]}  Nxg4 {[%clk 0:01:44]} 23. Rf3 {[%clk 0:01:10]}  Ne5 {[%clk 0:01:39]} 24. Nxe5 {[%clk 0:01:03]}  Bxe5 {[%clk 0:01:40]} 25. Nc4 {[%clk 0:01:04]}  Bf6 {[%clk 0:01:40]} 26. e4 {[%clk 0:01:00]}  Bxc4 {[%clk 0:01:31]} 27. bxc4 {[%clk 0:00:59]}  Reb8 {[%clk 0:01:31]} 28. Rb3 {[%clk 0:00:56]}  a5 {[%clk 0:01:28]} 29. Rcb1 {[%clk 0:00:55]}  Rb4 {[%clk 0:01:29]} 30. Rc1 {[%clk 0:00:22]}  Rxb3 {[%clk 0:01:25]} 31. axb3 {[%clk 0:00:12]}  Rb8 {[%clk 0:01:25]} 0-1


[Site "https://www.chess.com"]

[Event "Titled Tuesday Blitz November 14 Late 2023"]
[White "Melikhov, Evgeny V."]
[Black "Dahlgren, James Allen"]
[WhiteFideId "4122046"]
[BlackFideId "22256873"]
[WhiteElo "2377"]
[BlackElo "2140"]
[Result "1-0"]
[Round "3"]
[TimeControl "180+1"]
[Date "2023.11.14"]
[WhiteClock "0:01:27"]
[BlackClock "0:00:48"]
[Board "167"]

1. d4 {[%clk 0:03:00]}  e6 {[%clk 0:02:52]} 2. c4 {[%clk 0:03:00]}  c5 {[%clk 0:02:40]} 3. d5 {[%clk 0:02:59]}  d6 {[%clk 0:02:31]} 4. Nc3 {[%clk 0:02:53]}  f5 {[%clk 0:02:13]} 5. e4 {[%clk 0:02:40]}  e5 {[%clk 0:02:06]} 6. f4 {[%clk 0:02:33]}  Nf6 {[%clk 0:02:02]} 7. fxe5 {[%clk 0:02:26]}  dxe5 {[%clk 0:01:55]} 8. exf5 {[%clk 0:02:24]}  Bxf5 {[%clk 0:01:51]} 9. Nf3 {[%clk 0:02:21]}  Bd6 {[%clk 0:01:49]} 10. Ng5 {[%clk 0:02:06]}  O-O {[%clk 0:01:45]} 11. Bd3 {[%clk 0:02:00]}  e4 {[%clk 0:01:40]} 12. O-O {[%clk 0:01:44]}  exd3 {[%clk 0:01:10]} 13. Rxf5 {[%clk 0:01:43]}  Bxh2+ {[%clk 0:01:10]} 14. Kxh2 {[%clk 0:01:34]}  Nbd7 {[%clk 0:00:48]} 15. Ne6 {[%clk 0:01:27]} 1-0


[Site "https://www.chess.com"]

[Event "Titled Tuesday Blitz November 14 Late 2023"]
[White "Michalski, Olaf"]
[Black "Balla, Tamas-Kristof"]
[WhiteFideId "1106740"]
[BlackFideId "1208497"]
[WhiteElo "2138"]
[BlackElo "2375"]
[Result "0-1"]
[Round "3"]
[TimeControl "180+1"]
[Date "2023.11.14"]
[WhiteClock "0:00:00"]
[BlackClock "0:00:20"]
[Board "168"]

1. d4 {[%clk 0:02:57]}  d5 {[%clk 0:03:00]} 2. c4 {[%clk 0:02:57]}  e6 {[%clk 0:03:00]} 3. Nc3 {[%clk 0:02:57]}  c5 {[%clk 0:03:00]} 4. cxd5 {[%clk 0:02:56]}  exd5 {[%clk 0:03:01]} 5. Nf3 {[%clk 0:02:56]}  Nc6 {[%clk 0:03:02]} 6. g3 {[%clk 0:02:57]}  Nf6 {[%clk 0:03:01]} 7. Bg2 {[%clk 0:02:57]}  cxd4 {[%clk 0:03:02]} 8. Nxd4 {[%clk 0:02:56]}  Bc5 {[%clk 0:03:02]} 9. Nb3 {[%clk 0:02:43]}  Bb6 {[%clk 0:03:00]} 10. O-O {[%clk 0:02:40]}  O-O {[%clk 0:03:00]} 11. Bg5 {[%clk 0:02:22]}  Be6 {[%clk 0:02:31]} 12. Bxf6 {[%clk 0:02:14]}  Qxf6 {[%clk 0:02:30]} 13. Nxd5 {[%clk 0:02:15]}  Bxd5 {[%clk 0:02:30]} 14. Qxd5 {[%clk 0:02:12]}  Qxb2 {[%clk 0:02:29]} 15. e3 {[%clk 0:02:04]}  Rad8 {[%clk 0:02:24]} 16. Qb5 {[%clk 0:01:51]}  Rd6 {[%clk 0:02:05]} 17. a4 {[%clk 0:01:18]}  Rfd8 {[%clk 0:01:48]} 18. Rfb1 {[%clk 0:01:05]}  Qe5 {[%clk 0:01:14]} 19. Bxc6 {[%clk 0:00:57]}  Qf6 {[%clk 0:01:03]} 20. Bxb7 {[%clk 0:00:47]}  h5 {[%clk 0:01:01]} 21. Qxh5 {[%clk 0:00:42]}  Rd3 {[%clk 0:01:00]} 22. Be4 {[%clk 0:00:32]}  Rxb3 {[%clk 0:00:58]} 23. Rxb3 {[%clk 0:00:19]}  Qxa1+ {[%clk 0:00:58]} 24. Rb1 {[%clk 0:00:15]}  Qf6 {[%clk 0:00:56]} 25. Qh7+ {[%clk 0:00:15]}  Kf8 {[%clk 0:00:56]} 26. a5 {[%clk 0:00:13]}  Bc7 {[%clk 0:00:44]} 27. Rb7 {[%clk 0:00:10]}  Qe5 {[%clk 0:00:40]} 28. Rxa7 {[%clk 0:00:05]}  Rd1+ {[%clk 0:00:32]} 29. Kg2 {[%clk 0:00:05]}  Rd8 {[%clk 0:00:33]} 30. Rxc7 {[%clk 0:00:04]}  Qxc7 {[%clk 0:00:32]} 31. Qh8+ {[%clk 0:00:05]}  Ke7 {[%clk 0:00:33]} 32. Qxg7 {[%clk 0:00:05]}  Qxa5 {[%clk 0:00:31]} 33. h4 {[%clk 0:00:05]}  Rd2 {[%clk 0:00:29]} 34. Qh6 {[%clk 0:00:02]}  Qa2 {[%clk 0:00:29]} 35. Qg5+ {[%clk 0:00:02]}  f6 {[%clk 0:00:27]} 36. Qg7+ {[%clk 0:00:02]}  Ke6 {[%clk 0:00:26]} 37. Qg8+ {[%clk 0:00:02]}  Ke5 {[%clk 0:00:26]} 38. Qxa2 {[%clk 0:00:02]}  Rxa2 {[%clk 0:00:25]} 39. Kf3 {[%clk 0:00:02]}  Ra7 {[%clk 0:00:23]} 40. h5 {[%clk 0:00:01]}  f5 {[%clk 0:00:23]} 41. Bd3 {[%clk 0:00:01]}  Rh7 {[%clk 0:00:24]} 42. g4 {[%clk 0:00:01]}  fxg4+ {[%clk 0:00:22]} 43. Kxg4 {[%clk 0:00:01]}  Rg7+ {[%clk 0:00:22]} 44. Kh4 {[%clk 0:00:01]}  Rf7 {[%clk 0:00:22]} 45. f4+ {[%clk 0:00:01]}  Kf6 {[%clk 0:00:22]} 46. h6 {[%clk 0:00:02]}  Rd7 {[%clk 0:00:20]} 47. h7 {[%clk 0:00:02]}  Kg7 {[%clk 0:00:21]} 48. Be4 {[%clk 0:00:01]}  Re7 {[%clk 0:00:21]} 49. Bf3 {[%clk 0:00:01]}  Rxe3 {[%clk 0:00:21]} 50. Kg4 {[%clk 0:00:02]}  Kxh7 {[%clk 0:00:20]} 51. f5 {[%clk 0:00:01]}  Kg7 {[%clk 0:00:19]} 52. Bg2 {[%clk 0:00:01]}  Ra3 {[%clk 0:00:20]} 53. Kg5 {[%clk 0:00:01]}  Rg3+ {[%clk 0:00:19]} 54. Kf4 {[%clk 0:00:00]}  Rxg2 {[%clk 0:00:20]} 0-1


[Site "https://www.chess.com"]

[Event "Titled Tuesday Blitz November 14 Late 2023"]
[White "Jelcic, Marko"]
[Black "Bugayev, Vladimir"]
[WhiteFideId "14406489"]
[BlackFideId "30901480"]
[WhiteElo "2129"]
[BlackElo "2373"]
[Result "0-1"]
[Round "3"]
[TimeControl "180+1"]
[Date "2023.11.14"]
[WhiteClock "0:00:00"]
[BlackClock "0:00:29"]
[Board "169"]

1. d4 {[%clk 0:02:40]}  Nf6 {[%clk 0:02:59]} 2. c4 {[%clk 0:02:39]}  c5 {[%clk 0:02:59]} 3. e3 {[%clk 0:02:33]}  g6 {[%clk 0:02:57]} 4. Nc3 {[%clk 0:02:31]}  Bg7 {[%clk 0:02:56]} 5. Nf3 {[%clk 0:02:31]}  O-O {[%clk 0:02:55]} 6. b4 {[%clk 0:02:31]}  cxb4 {[%clk 0:02:52]} 7. Nd5 {[%clk 0:02:27]}  Nxd5 {[%clk 0:02:40]} 8. cxd5 {[%clk 0:02:28]}  d6 {[%clk 0:02:40]} 9. Bd2 {[%clk 0:02:25]}  a5 {[%clk 0:02:34]} 10. a3 {[%clk 0:02:17]}  bxa3 {[%clk 0:02:33]} 11. Rxa3 {[%clk 0:02:16]}  b6 {[%clk 0:02:34]} 12. Qb3 {[%clk 0:02:13]}  Bb7 {[%clk 0:02:31]} 13. Bxa5 {[%clk 0:01:47]}  Bxd5 {[%clk 0:02:30]} 14. Qxd5 {[%clk 0:01:29]}  Rxa5 {[%clk 0:02:30]} 15. Rxa5 {[%clk 0:01:23]}  bxa5 {[%clk 0:02:31]} 16. Bb5 {[%clk 0:01:23]}  Qb6 {[%clk 0:02:21]} 17. O-O {[%clk 0:01:18]}  e6 {[%clk 0:02:21]} 18. Qb3 {[%clk 0:01:16]}  Na6 {[%clk 0:02:03]} 19. Qa4 {[%clk 0:01:10]}  Nc7 {[%clk 0:01:56]} 20. Rb1 {[%clk 0:00:54]}  Rb8 {[%clk 0:01:56]} 21. Nd2 {[%clk 0:00:17]}  Nxb5 {[%clk 0:01:50]} 22. Nc4 {[%clk 0:00:17]}  Qa6 {[%clk 0:01:15]} 23. Na3 {[%clk 0:00:17]}  Rc8 {[%clk 0:01:06]} 24. Nxb5 {[%clk 0:00:16]}  e5 {[%clk 0:01:00]} 25. d5 {[%clk 0:00:15]}  e4 {[%clk 0:00:58]} 26. g3 {[%clk 0:00:14]}  f5 {[%clk 0:00:55]} 27. Na3 {[%clk 0:00:09]}  Bf8 {[%clk 0:00:47]} 28. Rb5 {[%clk 0:00:09]}  Rc5 {[%clk 0:00:47]} 29. Rxc5 {[%clk 0:00:06]}  dxc5 {[%clk 0:00:47]} 30. Nc4 {[%clk 0:00:07]}  Qb7 {[%clk 0:00:40]} 31. d6 {[%clk 0:00:06]}  Qb4 {[%clk 0:00:37]} 32. Qc2 {[%clk 0:00:02]}  a4 {[%clk 0:00:30]} 33. d7 {[%clk 0:00:02]}  Be7 {[%clk 0:00:30]} 34. Qd2 {[%clk 0:00:01]}  Qxd2 {[%clk 0:00:29]} 35. Nxd2 {[%clk 0:00:02]}  a3 {[%clk 0:00:29]} 36. Nb1 {[%clk 0:00:01]}  a2 {[%clk 0:00:29]} 37. Kf1 {[%clk 0:00:00]}  axb1=Q+ {[%clk 0:00:29]} 0-1


[Site "https://www.chess.com"]